Cogmind - Beta 16.1 @@@ ROGUE MODE // 2026.02.27 @ 19:28:36 Player: TheSkyeDoctor Result: Destroyed by G-47 Trooper with Particle Gun Performance ------------- Evolutions (2) 1000 Regions Visited (4) 800 Robots Destroyed (32) 160 Value Destroyed (830) 830 Prototype IDs (1) 20 Alien Tech Used (0) 0 Bonus (0) 0 TOTAL SCORE: 2810 Bonus ------- None Cogmind --------- Core Integrity 0/550 Matter 300/300 Energy 100/100 System Corruption 6% Temperature Cool (9) Movement Core (50) Location -8/Materials Parts ------- > --- POWER (1) -------- (None) > --- PROPULSION (3) --- (None) > --- UTILITY (5) ------ (None) > --- WEAPON (2) ------- (None) > --- INVENTORY (5) ---- Compact Wheel Compact Wheel High-capacity Storage Unit Decoy Drone Bay (14/16) Peak State ------------ > --- POWER ------------ Light Ion Engine > --- PROPULSION ------- Light Treads Compact Wheel > --- UTILITY ---------- High-capacity Storage Unit Seismic Detector Decoy Drone Bay > --- WEAPON ----------- Beam Cannon Light Cannon > --- INVENTORY -------- Wheel Compact Wheel Compact Wheel Compact Wheel Scrap Suit Structural Scanner Grenade Launcher [Rating: 22] Favorites ----------- Power Light Ion Engine Engine Light Ion Engine Power Core Light Nuclear Core Propulsion Light Treads Treads Light Treads Wheel Compact Wheel Utility Seismic Detector Device Seismic Detector Storage High-capacity Storage Unit Protection Light Armor Plating Weapon Beam Cannon Energy Cannon Beam Cannon Ballistic Gun Assault Rifle Ballistic Cannon Light Cannon Launcher Grenade Launcher Build | -11 -10 -9 -9 -8 ------- Run | Yrd Mat Mat Min Mat Slots Evolved 4 | . . 2 . 2 Power . | . . . . . Propulsion 1 | . . . . 1 Utility 3 | . . 2 . 1 Weapon . | . . . . . Parts Attached 25 | 7 4 4 6 4 Power 4 | 1 . . 2 1 Engine 3 | 1 . . 2 . Core 1 | . . . . 1 Reactor . | . . . . . Propulsion 7 | 2 . 3 1 1 Treads 4 | 2 . 2 . . Leg . | . . . . . Wheel 3 | . . 1 1 1 Hover . | . . . . . Flight . | . . . . . Utility 8 | 2 2 1 2 1 Device 5 | 1 1 . 2 1 Storage 2 | 1 1 . . . Processor . | . . . . . Hackware . | . . . . . Protection 1 | . . 1 . . Artifact . | . . . . . Weapon 6 | 2 2 . 1 1 Energy Gun . | . . . . . Energy Cannon 2 | . 2 . . . Ballistic Gun 2 | 2 . . . . Ballistic Cannon 1 | . . . 1 . Launcher 1 | . . . . 1 Special Weapon . | . . . . . Impact Weapon . | . . . . . Slashing Weapon . | . . . . . Piercing Weapon . | . . . . . Special Melee Weapon . | . . . . . Unidentified Prototypes 1 | . . . 1 . Parts Lost 21 | . . 2 7 12 Power 4 | . . . 2 2 Propulsion 7 | . . 2 1 4 Utility 5 | . . . 2 3 Weapon 5 | . . . 2 3 Highest Loss Streak 8 | . . 2 5 8 To Critical Strikes . | . . . . . Average Backups 7 | 2 8 10 6 4 Power . | . 1 1 . . Propulsion 3 | 1 4 4 4 3 Utility 1 | . 1 1 1 1 Weapon 1 | . 1 3 1 . Tool/Special . | . . . . . Unused Backups 3 | . . 1 . 2 Power . | . . . . . Propulsion 3 | . . 1 . 2 Utility . | . . . . . Weapon . | . . . . . Tool/Special . | . . . . . Average Slot Usage (%) 89 | . 100 96 86 62 Engine 11 | . 14 11 10 4 Treads 19 | . 28 21 15 4 Wheel 3 | . . . 5 13 Device 17 | . 14 20 19 20 Storage 11 | . 14 11 11 8 Protection 2 | . . 9 3 . Energy Cannon 11 | . 10 11 14 2 Ballistic Gun 8 | . 17 11 . . Ballistic Cannon 3 | . . . 6 7 Peak Build Rating 22 | 7 8 10 22 18 Average Rating 9 | 4 7 9 12 14 On Entrance 8 | . 7 8 9 17 Avg Prop Armor Cover (%) 8 | . . . 8 8 Naked Turns 4 | . . . . 4 Heaviest Build 64 | 12 49 53 64 55 Greatest Support 42 | 40 40 40 40 42 Greatest Overweight (x) 5 | . 1 5 3 3 Average Overweight (x) 1 | . . 1 2 1 Largest Inventory Capacity 20 | 8 20 20 20 20 Average Capacity 17 | 6 17 20 20 18 Most Carried 15 | 5 15 14 10 7 Average Carried 7 | 2 8 9 7 5 Final Capacity 20 | 8 20 20 20 5 Final Carried 15 | 3 15 9 8 5 Scrap Suit Usage (%) 14 | . . . 13 91 Parts Cannibalized 1 | . . . 1 . Class Distribution -------------------- 100% | Mutant Dominant Class ---------------- Mutant | -10/Materials Mutant | -9/Materials Mutant | -9/Mines Mutant | -8/Materials Resources | -11 -10 -9 -9 -8 ----------- Run | Yrd Mat Mat Min Mat Matter Collected 883 | 321 116 77 247 122 Remotely . | . . . . . Salvage Created 1180 | 135 287 108 443 207 Parts 67 | 6 25 4 22 10 Haulers Intercepted 1 | . 1 . . . Recyclers Shooed 1 | 1 . . . . Parts Field Recycled . | . . . . . Retrieved Matter . | . . . . . Parts Self-Destructed . | . . . . . Prevented . | . . . . . Parts Restored . | . . . . . Kills | -11 -10 -9 -9 -8 ------- Run | Yrd Mat Mat Min Mat Combat Hostiles Destroyed 25 | . 8 2 10 5 Guns 5 | . 4 1 . . Cannons 16 | . 4 1 10 1 AOE 4 | . . . . 4 Classes Destroyed 9 | 2 4 1 . 2 Builder 1 | . . . . 1 Tunneler 2 | 2 . . . . Hauler 1 | . 1 . . . Recycler 2 | 1 . . 1 . Watcher 1 | . 1 . . . Swarmer 7 | . 4 . 3 . Grunt 15 | . 4 1 7 3 Brawler 1 | . . . . 1 Sentry 2 | . . 1 . 1 Best Kill Streak 5 | 3 4 1 3 5 Combat Bots Only 4 | . 4 1 3 4 Max Kills in Single Turn 4 | 1 1 1 1 4 Gunslinging . | . . . . . Exploded 4 | . . . . 4 Melee . | . . . . . Uniques/NPCs Destroyed . | . . . . . Combat | -11 -10 -9 -9 -8 -------- Run | Yrd Mat Mat Min Mat Hostile Shots Fired 262 | . 56 14 78 114 Missed 68 | . 17 4 15 32 Hits 194 | . 39 10 63 82 Melee 10 | . . . . 10 Projectile 184 | . 39 10 63 72 Critical Strikes 10 | . . . 3 7 Damage Taken 2835 | . 382 135 815 1503 Core 800 | . 32 28 173 567 Absorbed by Shields . | . . . . . Regen/Repaired (Parts) 10 | . . . 10 . Core Remaining (%) 78 | 100 87 . 49 . Volleys Fired 98 | 17 28 6 34 13 Largest 2 | 1 2 2 2 2 Hottest 120 | 20 80 80 120 60 Shots Fired 160 | 17 56 12 61 14 Gun 69 | 17 39 6 7 . Cannon 89 | . 17 6 54 12 Launcher 2 | . . . . 2 Special . | . . . . . Kinetic 89 | 17 39 6 15 12 Thermal 69 | . 17 6 46 . Explosive 2 | . . . . 2 Electromagnetic . | . . . . . Robot Hit Streak 8 | 5 3 4 8 4 Robot Miss Streak 4 | 1 4 2 3 1 Penetration Max . | . . . . . Secondary Targets 1 | . 1 . . . Max Gunslinging Chain 1 | . 1 . . . Shots Hit Robots 93 | 13 25 7 37 11 Core Hits 48 | 4 12 3 14 15 Critical Kills . | . . . . . Critical Parts Destroyed . | . . . . . Critical Strikes 1 | . . . . 1 Blast 1 | . . . . 1 Melee Attacks . | . . . . . Impact . | . . . . . Slashing . | . . . . . Piercing . | . . . . . Sneak Attacks . | . . . . . Combat Hostiles . | . . . . . Follow-up Attacks . | . . . . . Damage Inflicted 2081 | 195 374 99 610 803 Guns 522 | 195 215 48 64 . Cannons 913 | . 159 51 546 157 Explosions 635 | . . . . 635 Melee . | . . . . . Ramming 11 | . . . . 11 Kinetic 770 | 195 215 48 155 157 Thermal 665 | . 159 51 455 . Explosive 635 | . . . . 635 Electromagnetic . | . . . . . Impact . | . . . . . Slashing . | . . . . . Piercing . | . . . . . Highest Corruption 6 | . . . . 6 Average Corruption 1 | . . . . 1 Corruption Purged . | . . . . . Corruption Blocked . | . . . . . Effects 2 | . . . . 2 Matter Fused 2 | . . . . 2 Overload Shots . | . . . . . Overflow Damage 4 | . . . 4 . Projectiles 4 | . . . 4 . Explosions . | . . . . . Melee . | . . . . . Knockbacks 1 | . . . . 1 Impact . | . . . . . Kinetic 1 | . . . . 1 Secondary . | . . . . . Self-Inflicted Damage 76 | . . . . 76 Shots 2 | . . . . 2 Rammed 2 | . . . . 2 Targets Rammed 2 | . . . . 2 Kicked . | . . . . . Crushed . | . . . . . Highest Temperature 621 | . 138 54 621 39 Average Temperature 158 | . 47 21 248 13 Received Heat Transfer 1239 | . 108 39 408 684 Effects 14 | . . . 14 . Shutdowns 4 | . . . 4 . Energy Bleed 2 | . . . 2 . Interference 2 | . . . 2 . Matter Decay 4 | . . . 4 . Damage (minor) 1 | . . . 1 . Damage (core) 1 | . . . 1 . Siege Activations . | . . . . . Martial Activations . | . . . . . Shielding Activations . | . . . . . Robots Disrupted . | . . . . . Combat Hostiles . | . . . . . Robots Corrupted . | . . . . . Combat Hostiles . | . . . . . Parts Fried . | . . . . . Impact Corruptions . | . . . . . Robots Melted . | . . . . . Combat Hostiles . | . . . . . Parts Melted 5 | . . . 5 . Heat Transferred 1406 | . 333 111 962 . Parts Sabotaged . | . . . . . Parts Stolen . | . . . . . Parts Stripped . | . . . . . Power Chain Reactions . | . . . . . Alert | -11 -10 -9 -9 -8 ------- Run | Yrd Mat Mat Min Mat Maximum Alert Level . | . . . . . Low Security (%) 100 | 100 100 100 100 100 Level 1 . | . . . . . Level 2 . | . . . . . Level 3 . | . . . . . Level 4 . | . . . . . Level 5 . | . . . . . High Security . | . . . . . Max Security . | . . . . . Peak Influence 98 | 10 87 30 70 98 Initial 11 | . . 5 7 11 Average 20 | . 27 9 23 17 Influence Increases 691 | 15 210 60 245 161 Destroy 0b10 Robot/C 500 | . 160 40 200 100 Destroy 0b10 Robot/NC 35 | 15 10 . 5 5 Destroy Leader 114 | . 34 20 40 20 Successful Hack 6 | . 6 . . . Disable Machine 15 | . . . . 15 Destroy Structure 6 | . . . . 6 Lose Combat Pursuer 15 | . . . . 15 Influence Decreases 653 | 15 195 55 235 153 Entered New Map 42 | . . 10 13 19 Time Decay 454 | 15 195 45 165 34 Lost Part 157 | . . . 57 100 Squads Dispatched 5 | . 2 1 1 1 Investigation 2 | . . 1 1 . Extermination . | . . . . . Reinforcement 3 | . 2 . . 1 Assault . | . . . . . Garrison . | . . . . . Intercept . | . . . . . Searches Triggered . | . . . . . Construction Impeded . | . . . . . Haulers Reinforced . | . . . . . Active Scanning Responses . | . . . . . Cargo Convoy Interrupts . | . . . . . Stealth | -11 -10 -9 -9 -8 --------- Run | Yrd Mat Mat Min Mat Distress Signals 5 | . 3 . . 2 Communications Jammed . | . . . . . Distress Signals . | . . . . . Times Spotted 51 | . 17 2 10 22 Peak Tracking Total 16 | . 8 1 3 16 Tactical Retreats 1 | . . . . 1 Traps | -11 -10 -9 -9 -8 ------- Run | Yrd Mat Mat Min Mat Traps Triggered . | . . . . . Indirectly . | . . . . . Trap Hack Attempts . | . . . . . Triggered . | . . . . . Disarmed . | . . . . . Reprogrammed . | . . . . . Reused . | . . . . . Traps Extracted . | . . . . . Installed . | . . . . . Triggered . | . . . . . Machines | -11 -10 -9 -9 -8 ---------- Run | Yrd Mat Mat Min Mat Machines Disabled 1 | . . . . 1 Max in Single Turn 1 | . . . . 1 Machines Repaired . | . . . . . Machines Dismantled . | . . . . . Machines Sabotaged . | . . . . . Overloaded Fab Kills . | . . . . . Hacking | -11 -10 -9 -9 -8 --------- Run | Yrd Mat Mat Min Mat Machines Accessed 6 | . 3 1 2 . Terminals 4 | . 2 1 1 . Fabricators . | . . . . . Repair Stations . | . . . . . Recycling Units 1 | . 1 . . . Scanalyzers . | . . . . . Garrison Access . | . . . . . Total Hacks 12 | . 7 2 3 . Successful 6 | . 4 . 2 . Failed 6 | . 3 2 1 . Catastrophic 2 | . 1 1 . . Database Lockouts . | . . . . . Manual 8 | . 6 2 . . Terminals 10 | . 6 2 2 . Fabricators . | . . . . . Repair Stations . | . . . . . Recycling Units 1 | . 1 . . . Scanalyzers . | . . . . . Garrison Access . | . . . . . Terminal Hacks 4 | . 2 . 2 . Open Door 1 | . . . 1 . Terminal Index 1 | . 1 . . . Zone Layout 2 | . 1 . 1 . Fabricator Hacks . | . . . . . Repair Station Hacks . | . . . . . Recycling Unit Hacks 1 | . 1 . . . Retrieve Components 1 | . 1 . . . Scanalyzer . | . . . . . Garrison Access Hacks . | . . . . . Unauthorized Hacks 1 | . 1 . . . Terminals 1 | . 1 . . . Botnet 1 | . 1 . . . Fabricators . | . . . . . Repair Stations . | . . . . . Recycling Units . | . . . . . Scanalyzers . | . . . . . Garrison Access . | . . . . . Data Cores Recovered . | . . . . . Used . | . . . . . Hacking Detections 3 | . 1 1 1 . Full Trace Events 3 | . 1 1 1 . Feedback Events . | . . . . . Feedback Blocked . | . . . . . Robot Schematics Acquired . | . . . . . Robots Built . | . . . . . Authchips . | . . . . . Time . | . . . . . Total Robot Build Rating . | . . . . . Part Schematics Acquired . | . . . . . Parts Built . | . . . . . Authchips . | . . . . . Time . | . . . . . Total Part Build Rating . | . . . . . Part Studies Acquired . | . . . . . Parts Repaired . | . . . . . Time . | . . . . . Parts Recycled . | . . . . . Recycled Matter . | . . . . . Retrieved Matter . | . . . . . Retrieved Components 4 | . 4 . . . Parts Scanalyzed . | . . . . . Part Schematics Acquired . | . . . . . Parts Damaged . | . . . . . Bothacking | -11 -10 -9 -9 -8 ------------ Run | Yrd Mat Mat Min Mat Used RIF Installer . | . . . . . Robots Hacked . | . . . . . Non-combat . | . . . . . Combat . | . . . . . Robot Hacks Applied . | . . . . . Relay Couplers Released . | . . . . . Fabnet Peak Effective % . | . . . . . Robots Rewired . | . . . . . Allies Hacked . | . . . . . Hacks Repelled . | . . . . . Allies | -11 -10 -9 -9 -8 -------- Run | Yrd Mat Mat Min Mat Total Allies . | . . . . . Largest Group . | . . . . . Highest-Rated Group . | . . . . . Highest-Rated Ally . | . . . . . Total Orders 1 | . . . 1 . RETURN 1 | . . . 1 . Ally Attacks . | . . . . . Total Damage . | . . . . . Kills . | . . . . . Allies Corrupted . | . . . . . Allies Melted . | . . . . . Intel | -11 -10 -9 -9 -8 ------- Run | Yrd Mat Mat Min Mat Active Infowar (turns) 1351 | 39 578 160 404 170 Structural 170 | . . . . 170 Seismic 1254 | 39 578 160 404 73 Robot Analysis Total . | . . . . . Derelict Logs Recovered . | . . . . . Drone Launches 16 | . . . 16 . Drone Recoveries 14 | . . . 14 . Exploration | -11 -10 -9 -9 -8 ------------- Run | Yrd Mat Mat Min Mat Turns Passed 1571 | 145 578 160 514 174 Spaces Moved 659 | 61 214 50 212 122 Core 22 | 2 . . . 20 Treads 381 | 59 214 49 59 . Legs . | . . . . . Wheels 256 | . . 1 153 102 Hover . | . . . . . Flight . | . . . . . Fastest Speed 50 | 50 160 155 145 50 Average Speed 181 | 156 219 238 175 112 Slowest Speed 320 | 160 240 240 320 145 Overloaded Moves . | . . . . . Propulsion Burnouts . | . . . . . Robots Hopped . | . . . . . Potential Cave-ins . | . . . . . Cave-ins Triggered . | . . . . . Exploration Rate (%) 22 | 4 37 6 40 24 Regions Visited 4 Branch Regions 1 Pre-discovered Areas . | . . . . . Known Exits Taken . | . . . . . Unknown Exits Taken 4 | 1 1 1 1 . Scrap Searched . | . . . . . Spaces Dug . | . . . . . Terrain Destroyed 5 | . . . . 5 Melee . | . . . . . Projectile . | . . . . . AOE 5 | . . . . 5 Terrain Rammed . | . . . . . Walls Destroyed . | . . . . . Machines Disabled . | . . . . . Actions | -11 -10 -9 -9 -8 --------- Run | Yrd Mat Mat Min Mat Total 875 | 91 268 80 292 144 Wait 68 | . 12 18 38 . Move 655 | 60 213 49 211 122 Hop . | . . . . . Pick Up 16 | 5 10 . 1 . Fast Attach 12 | 7 . . 3 2 Attach 12 | . . 4 4 4 Detach 2 | . . . 1 1 Swap 5 | . 4 1 . . Drop 5 | 2 1 2 . . Fire 98 | 17 28 6 34 13 Melee . | . . . . . Ram 2 | . . . . 2 Kick . | . . . . . Crush . | . . . . . Escape Stasis . | . . . . . Rewire . | . . . . . Trap . | . . . . . Miscellaneous . | . . . . . Route ------- -11/Scrapyard -10/Materials -9/Materials -9/Mines -8/Materials History --------- Turn | Location | Event 33 | -11/Scrapyard | Discovered new exit (range 16) 146 | -11/Scrapyard | Entered Materials 313 | -10/Materials | Build established: Mutant 629 | -10/Materials | Discovered new exit (range 6) 724 | -10/Materials | Entered another Materials area 724 | -9/Materials | Evolved 2 slots: Utility x2 768 | -9/Materials | Discovered new exit (range 13) 884 | -9/Materials | Entered Mines 1102 | -9/Mines | Lost 5 parts (1p1n2u1w) 1167 | -9/Mines | Found the Drone Emporium 1178 | -9/Mines | Found Prototype Device 1178 | -9/Mines | Identified Decoy Drone Bay 1291 | -9/Mines | Core integrity fell below 50% 1323 | -9/Mines | Found a Scrap Suit stashed away for nefarious purposes 1326 | -9/Mines | Found Scrap Suit 1385 | -9/Mines | Discovered new exit (range 7) 1398 | -9/Mines | Entered Materials 1398 | -8/Materials | Evolved 2 slots: Propulsion x1, Utility x1 1510 | -8/Materials | Lost 4 parts (1p1n1u1w) 1540 | -8/Materials | Core integrity fell below 50% 1560 | -8/Materials | Core integrity fell below 20% 1572 | -8/Materials | Destroyed by G-47 Trooper with Particle Gun Last Messages --------------- 01544_ B-36 Bruiser unfolds itself. 01544_ G-47 Trooper unfolds itself. 01544_ K-01 Serf collects debris. 01545_ U-05 Engineer lays Concrete. 01545_ W-25 Informer sends out distress signal. 01546_ U-05 Engineer lays Concrete. 01547_ U-05 Engineer builds a Wall. 01547_ Lgt. Nuclear Core destroyed. 01551_ U-05 Engineer builds a Wall. 01555_ U-05 Engineer lays Concrete. 01557_ U-05 Engineer builds a Wall. 01557_ Scrap Suit destroyed. 01559_ Com. Wheel destroyed. 01560_ W-25 Informer sends out distress signal. 01563_ M-13 Machinist repairs G-47 Trooper. 01568_ Slammed into Y-45 Defender. 01568_ Structural Scanner destroyed. 01568_ System corrupted by crushing effect (+5). 01569_ Slammed into Y-45 Defender. 01569_ Critical hit (Burn: +37). Map ----- +----------------------------------------------------+ | | | | | | | | | | | | | | | | | | | | | | | | | ?????????????????????????############??????####### | | ?????????????????????????############??????####### | | ????????????????????????? # !##??????## | | ????????????????????????? # """ ##??????## | | ????????????????????????? # "R" ]##??????## | | ????????????????????????? # " " ###?????## | | ????????????????????????? # ###?????## | | ????????????????????????? # """"" ##?????## | | ????????????????????????? #= """"" ###?????## * | | ????????????????????????? # """"" ##??????## * | | ?????????????????# # % ############= / | | ?????????????##+######+######g################# [ | | ?????????? a Yl g gg % | | ?????????? @ gl mgg T | | ?????????? g o | | ?????????????########################### # | | ??????????????########################## #### | | ??????????????????????????????????????##!!!!!!#### | | ??????????????????????????????????????##!!!!!!##?? | | ??????????????????????????????????????##########?? | | ??????????????????????????????????????##########?? | | ?????????????????????????????????????????????????? | | ?????????????????????????????????????????????????? | | ?????????????????????????????????????????????????? | | ?????????????????????????????????????????????????? | | ?????????????????????????????????????????????????? | | ?????????????????????????????????????????????????? | | ?????????????????????????????????????????????????? | | ?????????????????????????????????????????????????? | | ?????????????????????????????????????????????????? | | ?????????????????????????????????????????????????? | | ?????????????????????????????????????????????????? | | ?????????????????????????????????????????????????? | | ?????????????????????????????????????????????????? | | ?????????????????????????????????????????????????? | | ?????????????????????????????????????????????????? | | ?????????????????????????????????????????????????? | | ?????????????????????????????????????????????????? | +----------------------------------------------------+ Best States ------------- Heat Dissipation 31 Energy Generation 14 Energy Capacity 250 Matter Stores 300 Matter Capacity 300 Sight Range 16 Terrain Scan Density 10 Armor Coverage 150 Evasion (%) 40 Recoil Reduction 2 Item Schematics ----------------- None Robot Schematics ------------------ None Fabricated ------------ Nothing Repaired ---------- Nothing Studied --------- None Alien Tech Used ----------------- None Achievements -------------- Release The Drones! Challenges ------------ None Game ------ Seed KineticTransportArmor Manual? 0 Play Time 00:13:48 Cumulative 46.7 hours Start 2026.02.27 @ 19:16:39 End 2026.02.27 @ 19:28:36 Sessions 1 Manual Loads 0 Difficulty Rogue Special Mode None Game No. 110 Rogue 110 Adventurer 0 Explorer 0 Win Type - Total 0 Types 0/0/0/0/0/0/0/0/0/0 Lore% 29 Gallery% 38 Achievement% 29 Wizard Run 0 Options --------- Layout 2 ASCII 0 Keyboard 1 Movement Arrows Keybinds 0 Fullscreen 1 Font 24/Smallcaps Map View 50x44 Zoom Use 0% Tactical HUD 1 Map Filters NONE Filters NONE Steam 1 RUN: 645d52d0-f103-4c6a-a026-9372e03ec5b6